[Event "51st La Roda Open 2025"]
[Site "La Roda"]
[Date "2025.04.19"]
[Round "7.18"]
[White "Abdsattar, Alisher"]
[Black "Fuentes de Nova, Sebastian"]
[Result "1-0"]
[Annotator "NA RC"]
[ECO "C54"]
[WhiteElo "2126"]
[BlackElo "1902"]
[PlyCount "103"]
[EventDate "2025.04.15"]
[EventType "swiss"]
[EventCountry "ESP"]
[SourceTitle "playchess.com"]
[Source "ChessBase"]
[SourceQuality "1"]
[TimeControl "5400+30"]

1. e4 {[%emt 0:00:01]} e5 {[%emt 0:02:32]} 2. Nf3 {[%emt 0:00:18]} Nc6 {[%emt 0:00:25]} 3. Bc4 {[%emt 0:00:07]} Bc5 {[%emt 0:00:26]} 4. c3 {[%emt 0:00:07]} Nf6 {[%emt 0:00:07]} 5. d3 {[%emt 0:00:04]} d6 {[%emt 0:00:06]} 6. O-O {[%emt 0:00:11]} a5 {[%emt 0:00:34]} 7. Re1 {[%emt 0:00:26]} h6 {[%emt 0:00:23]} 8. Nbd2 {[%emt 0:00:38]} O-O {[%emt 0:01:07]} 9. h3 {[%emt 0:00:15]} Be6 {[%emt 0:00:15]} 10. Bb5 {[%emt 0:00:04]} Nd7 {[%emt 0:02:03]} 11. Nf1 {[%emt 0:04:41]} d5 {[%emt 0:15:35]} 12. exd5 {[%emt 0:06:11]} Bxd5 {[%emt 0:00:40]} 13. Ne3 {[%emt 0:00:19]} Bxe3 {[%emt 0:07:11]} 14. Bxe3 {[%emt 0:01:09]} e4 {[%emt 0:00:21]} 15. dxe4 {[%emt 0:12:59]} Bxe4 {[%emt 0:00:24]} 16. Bxh6 {[%emt 0:13:13]} Bxf3 {[%emt 0:00:41]} 17. Qxf3 {[%emt 0:00:49]} gxh6 {[%emt 0:00:19]} 18. Bxc6 {[%emt 0:00:03]} bxc6 {[%emt 0:00:17]} 19. Rad1 {[%emt 0:00:15]} Re8 {[%emt 0:08:21]} 20. Rxe8+ {[%emt 0:01:47]} Qxe8 {[%emt 0:00:06]} 21. Qg4+ {[%emt 0:00:04]} Kf8 {[%emt 0:00:07]} 22. Qxd7 {[%emt 0:02:26]} Qxd7 {[%emt 0:00:53]} 23. Rxd7 {[%emt 0:01:53]} Rb8 {[%emt 0:00:04]} 24. b3 {[%emt 0:00:53]} a4 {[%emt 0:01:42]} 25. Rxc7 {[%emt 0:14:39]} axb3 {[%emt 0:00:21]} 26. axb3 {[%emt 0:00:04]} Rxb3 {[%emt 0:00:08]} 27. Rxc6 {[%emt 0:00:02]} Kg7 {[%emt 0:00:08]} 28. g4 {[%emt 0:03:08]} Rb1+ {[%emt 0:00:22]} 29. Kg2 {[%emt 0:00:04]} Rc1 {[%emt 0:00:04]} 30. h4 {[%emt 0:07:35]} Rc2 {[%emt 0:01:00]} 31. Kg3 {[%emt 0:10:14]} Rc1 {[%emt 0:01:25]} 32. Kf4 {[%emt 0:02:34]} Kh7 {[%emt 0:00:46]} 33. Kf5 {[%emt 0:03:46]} Kg7 {[%emt 0:00:45]} 34. Rc7 {[%emt 0:02:35]} Rh1 {[%emt 0:03:02]} 35. h5 {[%emt 0:00:26]} Rh3 {[%emt 0:00:21]} 36. f4 {[%emt 0:02:32]} Rf3 {[%emt 0:00:23]} 37. c4 {[%emt 0:02:23]} Rh3 {[%emt 0:01:04]} 38. Rc6 {[%emt 0:03:37]} Rh1 {[%emt 0:00:26]} 39. g5 {[%emt 0:02:43]} hxg5 {[%emt 0:00:59]} 40. h6+ {[%emt 0:00:11]} Kh7 {[%emt 0:00:11]} 41. Kxg5 {[%emt 0:00:10]} Rg1+ {[%emt 0:00:40]} 42. Kf5 {[%emt 0:00:08]} Rc1 {[%emt 0:01:14]} 43. Kf6 {[%emt 0:02:05]} Kxh6 {[%emt 0:00:44]} 44. Kxf7+ {[%emt 0:00:04]} Kh7 {[%emt 0:00:36]} 45. f5 {[%emt 0:00:24]} Rg1 {[%emt 0:00:08]} 46. f6 {[%emt 0:00:57]} Rg7+ {[%emt 0:00:08]} 47. Ke8 {[%emt 0:00:31]} Ra7 {[%emt 0:00:17]} 48. f7 {[%emt 0:01:00]} Ra8+ {[%emt 0:00:06]} 49. Ke7 {[%emt 0:00:04]} Kg7 {[%emt 0:00:06]} 50. Rd6 {[%emt 0:00:27]} Ra7+ {[%emt 0:00:48]} 51. Ke8 {[%emt 0:00:34]} Kh7 {[%emt 0:00:57]} 52. Rh6+ {[%emt 0:01:35]} 1-0

[Event "51st La Roda Open 2025"]
[Site "La Roda"]
[Date "2025.04.20"]
[Round "9.1"]
[White "Albornoz Cabrera, Carlos Daniel"]
[Black "Gumularz, Szymon"]
[Result "1/2-1/2"]
[Annotator "ChessBase"]
[ECO "B95"]
[WhiteElo "2561"]
[BlackElo "2604"]
[PlyCount "58"]
[EventDate "2025.04.15"]
[EventType "swiss"]
[EventCountry "ESP"]
[SourceTitle "playchess.com"]
[Source "ChessBase"]
[SourceQuality "1"]
[TimeControl "5400+30"]

1. e4 {[%emt 0:00:03]} c5 {[%emt 0:00:14]} 2. Nf3 {[%emt 0:00:04]} d6 {[%emt 0:00:09]} 3. d4 {[%emt 0:00:03]} cxd4 {[%emt 0:00:07]} 4. Nxd4 {[%emt 0:00:03]} Nf6 {[%emt 0:00:07]} 5. Nc3 {[%emt 0:00:02]} a6 {[%emt 0:00:07]} 6. Bg5 {[%emt 0:00:04]} e6 {[%emt 0:00:13]} 7. Qf3 {[%emt 0:00:03]} h6 {[%emt 0:00:35]} 8. Bd2 {[%emt 0:00:03]} Qb6 {[%emt 0:00:16]} 9. Nb3 {[%emt 0:00:05]} Qc7 {[%emt 0:00:05]} 10. a4 {[%emt 0:00:03]} Bd7 {[%emt 0:03:32]} 11. a5 {[%emt 0:09:03]} Bc6 {[%emt 0:09:14]} 12. Nd4 {[%emt 0:02:40]} Nbd7 {[%emt 0:00:43]} 13. Nxc6 {[%emt 0:02:24]} Qxc6 {[%emt 0:00:36]} 14. Bd3 {[%emt 0:01:34]} Ne5 {[%emt 0:12:47]} 15. Qg3 {[%emt 0:02:14]} g5 {[%emt 0:00:23]} 16. f3 {[%emt 0:05:20]} Bg7 {[%emt 0:05:46]} 17. Qf2 {[%emt 0:05:23]} d5 {[%emt 0:05:41]} 18. O-O {[%emt 0:02:48]} dxe4 {[%emt 0:01:15]} 19. Bxe4 {[%emt 0:03:26]} Nxe4 {[%emt 0:01:32]} 20. Nxe4 {[%emt 0:00:04]} f5 {[%emt 0:00:59]} 21. Nc5 {[%emt 0:07:15]} Rc8 {[%emt 0:05:09]} 22. b4 {[%emt 0:09:42]} Nd7 {[%emt 0:04:12]} 23. Nxd7 {[%emt 0:00:13]} Qxd7 {[%emt 0:01:55]} 24. c3 {[%emt 0:02:18]} O-O {[%emt 0:10:02]} 25. Rfd1 {[%emt 0:03:32]} Qc6 {[%emt 0:04:07]} 26. Be1 {[%emt 0:07:44]} Rfd8 {[%emt 0:08:02]} 27. Qe2 {[%emt 0:00:53]} Kf7 {[%emt 0:00:08]} 28. Rxd8 {[%emt 0:03:16]} Rxd8 {[%emt 0:00:08]} 29. Rc1 {[%emt 0:02:01]} Qd6 {[%emt 0:13:50]} 1/2-1/2

[Event "51st La Roda Open 2025"]
[Site "La Roda"]
[Date "2025.04.20"]
[Round "9.2"]
[White "Pranav Vijay"]
[Black "Sierra Vallina, Lionel"]
[Result "1-0"]
[Annotator "ChessBase"]
[ECO "B51"]
[WhiteElo "2252"]
[BlackElo "2342"]
[PlyCount "115"]
[EventDate "2025.04.15"]
[EventType "swiss"]
[EventCountry "ESP"]
[SourceTitle "playchess.com"]
[Source "ChessBase"]
[SourceQuality "1"]
[TimeControl "5400+30"]

1. e4 {[%emt 0:00:01]} c5 {[%emt 0:00:07]} 2. Nf3 {[%emt 0:00:07]} d6 {[%emt 0:00:07]} 3. Bb5+ {[%emt 0:00:24]} Nd7 {[%emt 0:00:23]} 4. O-O {[%emt 0:00:09]} a6 {[%emt 0:00:10]} 5. Bxd7+ {[%emt 0:00:11]} Bxd7 {[%emt 0:00:09]} 6. c3 {[%emt 0:00:09]} Nf6 {[%emt 0:00:39]} 7. Re1 {[%emt 0:00:02]} e6 {[%emt 0:00:08]} 8. d4 {[%emt 0:00:09]} cxd4 {[%emt 0:00:21]} 9. cxd4 {[%emt 0:00:02]} d5 {[%emt 0:00:07]} 10. e5 {[%emt 0:00:08]} Ne4 {[%emt 0:00:06]} 11. Nfd2 {[%emt 0:00:05]} f5 {[%emt 0:01:51]} 12. exf6 {[%emt 0:05:30]} Nxf6 {[%emt 0:00:11]} 13. Nf3 {[%emt 0:04:05]} Bd6 {[%emt 0:01:58]} 14. Nc3 {[%emt 0:00:28]} O-O {[%emt 0:00:12]} 15. Ne5 {[%emt 0:01:17]} Be8 {[%emt 0:08:00]} 16. Bf4 {[%emt 0:03:47]} Nh5 {[%emt 0:27:52]} 17. Bg3 {[%emt 0:02:52]} Nxg3 {[%emt 0:00:12]} 18. hxg3 {[%emt 0:00:08]} Qb6 {[%emt 0:00:52]} 19. Qd2 {[%emt 0:00:54]} Rc8 {[%emt 0:06:04]} 20. Re3 {[%emt 0:01:52]} Bxe5 {[%emt 0:09:03]} 21. Rxe5 {[%emt 0:00:07]} Rc4 {[%emt 0:00:07]} 22. Rd1 {[%emt 0:03:10]} Bd7 {[%emt 0:00:43]} 23. Re2 {[%emt 0:14:25]} Rfc8 {[%emt 0:03:03]} 24. Qe3 {[%emt 0:03:00]} Qd6 {[%emt 0:04:59]} 25. Red2 {[%emt 0:02:31]} a5 {[%emt 0:04:57]} 26. Ne2 {[%emt 0:01:48]} b6 {[%emt 0:03:37]} 27. Nf4 {[%emt 0:01:27]} Rc2 {[%emt 0:01:03]} 28. Nd3 {[%emt 0:01:02]} Bb5 {[%emt 0:02:52]} 29. Ne5 {[%emt 0:01:45]} R2c7 {[%emt 0:02:03]} 30. g4 {[%emt 0:00:51]} Ba4 {[%emt 0:06:46]} 31. Re1 {[%emt 0:01:13]} Bc2 {[%emt 0:00:17]} 32. f3 {[%emt 0:02:46]} a4 {[%emt 0:00:50]} 33. a3 {[%emt 0:05:07]} b5 {[%emt 0:00:59]} 34. Rde2 {[%emt 0:01:17]} Re8 {[%emt 0:04:29]} 35. Rc1 {[%emt 0:02:38]} Rec8 {[%emt 0:00:40]} 36. Kf2 {[%emt 0:03:57]} Bg6 {[%emt 0:02:41]} 37. Ree1 {[%emt 0:06:58]} Bc2 {[%emt 0:01:39]} 38. Qd2 {[%emt 0:01:00]} Bg6 {[%emt 0:04:28]} 39. Rxc7 {[%emt 0:01:00]} Qxc7 {[%emt 0:00:14]} 40. Qb4 {[%emt 0:01:22]} Qb6 {[%emt 0:00:28]} 41. Kg3 {[%emt 0:00:24]} Rc7 {[%emt 0:00:42]} 42. Re3 {[%emt 0:00:36]} Be8 {[%emt 0:01:03]} 43. g5 {[%emt 0:02:23]} Qb8 {[%emt 0:02:09]} 44. Qd6 {[%emt 0:00:16]} Qc8 {[%emt 0:00:05]} 45. Nd3 {[%emt 0:01:17]} Rc6 {[%emt 0:01:00]} 46. Qe7 {[%emt 0:01:11]} Qd7 {[%emt 0:00:57]} 47. Qxd7 {[%emt 0:01:19]} Bxd7 {[%emt 0:00:01]} 48. Nc5 {[%emt 0:00:07]} Rd6 {[%emt 0:00:42]} 49. Kf4 {[%emt 0:00:18]} Kf7 {[%emt 0:00:05]} 50. Ke5 {[%emt 0:00:42]} Ke7 {[%emt 0:00:06]} 51. f4 {[%emt 0:00:04]} Be8 {[%emt 0:01:09]} 52. Rh3 {[%emt 0:00:13]} Rb6 {[%emt 0:01:40]} 53. Rxh7 {[%emt 0:00:17]} Kf7 {[%emt 0:00:04]} 54. g4 {[%emt 0:02:08]} b4 {[%emt 0:00:53]} 55. f5 {[%emt 0:00:05]} exf5 {[%emt 0:00:15]} 56. gxf5 {[%emt 0:00:05]} bxa3 {[%emt 0:00:23]} 57. bxa3 {[%emt 0:00:04]} Kg8 {[%emt 0:00:59]} 58. g6 {[%emt 0:00:06]} 1-0

[Event "51st La Roda Open 2025"]
[Site "La Roda"]
[Date "2025.04.20"]
[Round "9.3"]
[White "Fier, Alexandr"]
[Black "Kanov, Nikola"]
[Result "1-0"]
[Annotator "ChessBase"]
[ECO "A63"]
[WhiteElo "2534"]
[BlackElo "2413"]
[PlyCount "53"]
[EventDate "2025.04.15"]
[EventType "swiss"]
[EventCountry "ESP"]
[SourceTitle "playchess.com"]
[Source "ChessBase"]
[SourceQuality "1"]
[TimeControl "5400+30"]

1. d4 {[%emt 0:00:03]} Nf6 {[%emt 0:00:13]} 2. c4 {[%emt 0:00:06]} e6 {[%emt 0:00:11]} 3. g3 {[%emt 0:00:04]} c5 {[%emt 0:00:33]} 4. d5 {[%emt 0:00:05]} exd5 {[%emt 0:00:37]} 5. cxd5 {[%emt 0:00:04]} d6 {[%emt 0:00:14]} 6. Nc3 {[%emt 0:00:06]} g6 {[%emt 0:00:27]} 7. Bg2 {[%emt 0:00:04]} Bg7 {[%emt 0:00:17]} 8. Nf3 {[%emt 0:00:04]} O-O {[%emt 0:00:19]} 9. O-O {[%emt 0:00:03]} a6 {[%emt 0:00:52]} 10. a4 {[%emt 0:00:05]} Nbd7 {[%emt 0:00:43]} 11. Bf4 {[%emt 0:00:20]} Qc7 {[%emt 0:00:39]} 12. e4 {[%emt 0:02:17]} Ng4 {[%emt 0:04:18]} 13. Nd2 {[%emt 0:00:20]} Nge5 {[%emt 0:02:51]} 14. Be3 {[%emt 0:04:55]} Rb8 {[%emt 0:12:46]} 15. f4 {[%emt 0:10:02]} Nd3 {[%emt 0:00:32]} 16. e5 {[%emt 0:00:04]} dxe5 {[%emt 0:06:50]} 17. d6 {[%emt 0:00:22]} Qd8 {[%emt 0:01:00]} 18. f5 {[%emt 0:01:15]} gxf5 {[%emt 0:16:02]} 19. Rxf5 {[%emt 0:00:25]} Nf6 {[%emt 0:00:39]} 20. Rxf6 {[%emt 0:00:42]} Bxf6 {[%emt 0:01:58]} 21. Nde4 {[%emt 0:00:06]} c4 {[%emt 0:02:02]} 22. Nd5 {[%emt 0:01:43]} Bg7 {[%emt 0:01:10]} 23. Bb6 {[%emt 0:00:24]} Qxb6+ {[%emt 0:12:15]} 24. Nxb6 {[%emt 0:00:05]} Be6 {[%emt 0:00:08]} 25. Qh5 {[%emt 0:01:37]} h6 {[%emt 0:00:40]} 26. Rf1 {[%emt 0:00:06]} f5 {[%emt 0:01:10]} 27. Qg6 {[%emt 0:00:17]} 1-0

[Event "51st La Roda Open 2025"]
[Site "La Roda"]
[Date "2025.04.20"]
[Round "9.4"]
[White "Suleymenov, Alisher"]
[Black "Buendia Pinar, Alvaro"]
[Result "1-0"]
[Annotator "ChessBase"]
[ECO "D24"]
[WhiteElo "2478"]
[BlackElo "2322"]
[PlyCount "129"]
[EventDate "2025.04.15"]
[EventType "swiss"]
[EventCountry "ESP"]
[SourceTitle "playchess.com"]
[Source "ChessBase"]
[SourceQuality "1"]
[TimeControl "5400+30"]

1. d4 {[%emt 0:00:01]} d5 {[%emt 0:00:43]} 2. c4 {[%emt 0:00:07]} e6 {[%emt 0:00:38]} 3. Nc3 {[%emt 0:00:08]} Nf6 {[%emt 0:00:44]} 4. Nf3 {[%emt 0:00:27]} dxc4 {[%emt 0:00:39]} 5. e4 {[%emt 0:00:17]} Bb4 {[%emt 0:01:00]} 6. Bxc4 {[%emt 0:00:08]} Nxe4 {[%emt 0:03:02]} 7. O-O {[%emt 0:00:06]} Nxc3 {[%emt 0:00:12]} 8. bxc3 {[%emt 0:00:06]} Bd6 {[%emt 0:03:24]} 9. Bg5 {[%emt 0:00:07]} Be7 {[%emt 0:00:24]} 10. Bf4 {[%emt 0:00:06]} Nd7 {[%emt 0:02:48]} 11. Qc2 {[%emt 0:05:24]} Bd6 {[%emt 0:04:08]} 12. Bg5 {[%emt 0:05:00]} Be7 {[%emt 0:02:48]} 13. Bf4 {[%emt 0:09:00]} Bd6 {[%emt 0:00:11]} 14. Bg5 {[%emt 0:13:31]} Be7 {[%emt 0:00:22]} 15. h4 {[%emt 0:00:09]} h6 {[%emt 0:03:08]} 16. Bxe7 {[%emt 0:06:21]} Qxe7 {[%emt 0:00:13]} 17. Rfe1 {[%emt 0:00:04]} O-O {[%emt 0:02:26]} 18. Rad1 {[%emt 0:00:21]} Nb6 {[%emt 0:02:03]} 19. Bb3 {[%emt 0:02:50]} Qf6 {[%emt 0:00:31]} 20. Qe4 {[%emt 0:05:38]} Nd5 {[%emt 0:01:22]} 21. Rd3 {[%emt 0:03:18]} Nf4 {[%emt 0:04:48]} 22. Rde3 {[%emt 0:00:29]} Nd5 {[%emt 0:02:06]} 23. Rd3 {[%emt 0:02:07]} Nf4 {[%emt 0:00:30]} 24. Rde3 {[%emt 0:00:02]} Nd5 {[%emt 0:00:06]} 25. Bxd5 {[%emt 0:00:04]} exd5 {[%emt 0:00:07]} 26. Qxd5 {[%emt 0:00:02]} c6 {[%emt 0:01:18]} 27. Qb3 {[%emt 0:02:57]} b5 {[%emt 0:01:41]} 28. d5 {[%emt 0:05:54]} cxd5 {[%emt 0:07:47]} 29. Qxb5 {[%emt 0:00:05]} Be6 {[%emt 0:00:42]} 30. Qa6 {[%emt 0:08:04]} Qf4 {[%emt 0:05:38]} 31. Rd1 {[%emt 0:08:40]} Rfb8 {[%emt 0:05:37]} 32. Nd4 {[%emt 0:04:58]} Rb6 {[%emt 0:00:30]} 33. Qe2 {[%emt 0:01:15]} Qxh4 {[%emt 0:02:03]} 34. Nxe6 {[%emt 0:00:07]} fxe6 {[%emt 0:00:02]} 35. Rxe6 {[%emt 0:00:06]} Rf8 {[%emt 0:05:58]} 36. Rxb6 {[%emt 0:00:43]} axb6 {[%emt 0:00:04]} 37. Qe6+ {[%emt 0:00:52]} Kh8 {[%emt 0:00:04]} 38. Qxb6 {[%emt 0:00:06]} Qc4 {[%emt 0:02:47]} 39. Qb3 {[%emt 0:05:26]} Qe2 {[%emt 0:02:36]} 40. Rf1 {[%emt 0:00:03]} Qd2 {[%emt 0:00:10]} 41. a4 {[%emt 0:01:25]} Rc8 {[%emt 0:00:47]} 42. a5 {[%emt 0:08:37]} Rxc3 {[%emt 0:01:19]} 43. Qb8+ {[%emt 0:00:03]} Kh7 {[%emt 0:00:09]} 44. Qb1+ {[%emt 0:00:10]} Qc2 {[%emt 0:00:30]} 45. Qxc2+ {[%emt 0:00:36]} Rxc2 {[%emt 0:00:05]} 46. Ra1 {[%emt 0:00:03]} Rc7 {[%emt 0:01:18]} 47. a6 {[%emt 0:00:10]} Ra7 {[%emt 0:00:02]} 48. f3 {[%emt 0:03:19]} Kg6 {[%emt 0:04:22]} 49. Kf2 {[%emt 0:00:01]} Kf5 {[%emt 0:00:14]} 50. Ke3 {[%emt 0:00:24]} Ke5 {[%emt 0:00:05]} 51. Ra5 {[%emt 0:00:11]} g5 {[%emt 0:00:38]} 52. g4 {[%emt 0:01:19]} Kd6 {[%emt 0:02:30]} 53. Kd4 {[%emt 0:00:08]} Kc6 {[%emt 0:02:38]} 54. Ra1 {[%emt 0:00:07]} Ra8 {[%emt 0:02:55]} 55. a7 {[%emt 0:02:14]} Kb7 {[%emt 0:00:04]} 56. Ra2 {[%emt 0:00:51]} Kc6 {[%emt 0:00:31]} 57. Ra3 {[%emt 0:01:17]} Kb7 {[%emt 0:00:16]} 58. Kxd5 {[%emt 0:01:01]} Rd8+ {[%emt 0:00:06]} 59. Ke5 {[%emt 0:00:16]} Ka8 {[%emt 0:00:48]} 60. Ra6 {[%emt 0:00:18]} Rh8 {[%emt 0:00:11]} 61. Kf5 {[%emt 0:00:29]} h5 {[%emt 0:26:12]} 62. Kxg5 {[%emt 0:00:39]} h4 {[%emt 0:00:00]} 63. Ra2 {[%emt 0:00:13]} h3 {[%emt 0:00:00]} 64. Rh2 {[%emt 0:00:04]} Kxa7 {[%emt 0:00:00]} 65. Kf4 {[%emt 0:00:03]} 1-0

[Event "51st La Roda Open 2025"]
[Site "La Roda"]
[Date "2025.04.20"]
[Round "9.5"]
[White "Gonzalez Castillo, Jose Javier"]
[Black "Lopez Martinez, Josep Manuel"]
[Result "1/2-1/2"]
[Annotator "ChessBase"]
[ECO "C54"]
[WhiteElo "2297"]
[BlackElo "2460"]
[PlyCount "34"]
[EventDate "2025.04.15"]
[EventType "swiss"]
[EventCountry "ESP"]
[SourceTitle "playchess.com"]
[Source "ChessBase"]
[SourceQuality "1"]
[TimeControl "5400+30"]

1. e4 {[%emt 0:00:04]} e5 {[%emt 0:05:13]} 2. Nf3 {[%emt 0:00:19]} Nc6 {[%emt 0:00:34]} 3. Bc4 {[%emt 0:00:06]} Bc5 {[%emt 0:00:17]} 4. c3 {[%emt 0:00:19]} Nf6 {[%emt 0:00:15]} 5. d3 {[%emt 0:00:07]} a5 {[%emt 0:00:39]} 6. O-O {[%emt 0:00:34]} d6 {[%emt 0:00:21]} 7. Nbd2 {[%emt 0:00:32]} O-O {[%emt 0:01:51]} 8. h3 {[%emt 0:01:42]} Ba7 {[%emt 0:02:07]} 9. Re1 {[%emt 0:01:43]} Be6 {[%emt 0:00:47]} 10. Bb5 {[%emt 0:01:28]} Ne7 {[%emt 0:00:09]} 11. d4 {[%emt 0:00:28]} Ng6 {[%emt 0:00:39]} 12. Ba4 {[%emt 0:03:59]} Nh5 {[%emt 0:12:16]} 13. Nf1 {[%emt 0:07:04]} Nhf4 {[%emt 0:02:49]} 14. Be3 {[%emt 0:02:25]} c6 {[%emt 0:09:39]} 15. Bc2 {[%emt 0:01:00]} f6 {[%emt 0:10:57]} 16. Ng3 {[%emt 0:08:02]} Kh8 {[%emt 0:00:25]} 17. Qd2 {[%emt 0:12:52]} Qc7 {[%emt 0:50:02]} 1/2-1/2

[Event "51st La Roda Open 2025"]
[Site "La Roda"]
[Date "2025.04.20"]
[Round "9.6"]
[White "Valmana Canto, Jaime"]
[Black "Hernandez Leon, Alberto"]
[Result "1-0"]
[Annotator "ChessBase"]
[ECO "E90"]
[WhiteElo "2385"]
[BlackElo "2174"]
[PlyCount "89"]
[EventDate "2025.04.15"]
[EventType "swiss"]
[EventCountry "ESP"]
[SourceTitle "playchess.com"]
[Source "ChessBase"]
[SourceQuality "1"]
[TimeControl "5400+30"]

1. Nf3 {[%emt 0:00:05]} g6 {[%emt 0:00:38]} 2. d4 {[%emt 0:11:04]} d6 {[%emt 0:03:22]} 3. c4 {[%emt 0:02:04]} Nf6 {[%emt 0:01:45]} 4. Nc3 {[%emt 0:01:35]} Bg7 {[%emt 0:00:09]} 5. e4 {[%emt 0:01:20]} O-O {[%emt 0:00:15]} 6. h3 {[%emt 0:02:26]} c5 {[%emt 0:00:57]} 7. d5 {[%emt 0:02:11]} e6 {[%emt 0:02:10]} 8. Bd3 {[%emt 0:00:07]} Na6 {[%emt 0:00:30]} 9. O-O {[%emt 0:00:14]} Nc7 {[%emt 0:00:57]} 10. Re1 {[%emt 0:10:07]} a6 {[%emt 0:07:37]} 11. a4 {[%emt 0:13:54]} b6 {[%emt 0:08:40]} 12. Bg5 {[%emt 0:07:37]} e5 {[%emt 0:10:38]} 13. Qd2 {[%emt 0:00:37]} Qe8 {[%emt 0:13:01]} 14. Nh2 {[%emt 0:09:25]} Rb8 {[%emt 0:02:08]} 15. f4 {[%emt 0:06:56]} Nh5 {[%emt 0:07:04]} 16. f5 {[%emt 0:01:22]} f6 {[%emt 0:01:17]} 17. Be3 {[%emt 0:00:41]} g5 {[%emt 0:01:09]} 18. Reb1 {[%emt 0:12:47]} a5 {[%emt 0:04:26]} 19. Bf2 {[%emt 0:00:03]} Kf7 {[%emt 0:10:42]} 20. g3 {[%emt 0:05:09]} Ke7 {[%emt 0:01:07]} 21. Be2 {[%emt 0:01:03]} Bh8 {[%emt 0:01:31]} 22. Ng4 {[%emt 0:00:01]} Bd7 {[%emt 0:08:22]} 23. Qd1 {[%emt 0:00:08]} Ng7 {[%emt 0:00:17]} 24. Nh6 {[%emt 0:00:02]} Na6 {[%emt 0:01:50]} 25. h4 {[%emt 0:03:23]} gxh4 {[%emt 0:00:05]} 26. g4 {[%emt 0:00:01]} Kd8 {[%emt 0:01:14]} 27. Bxh4 {[%emt 0:00:10]} Qe7 {[%emt 0:00:16]} 28. Qd2 {[%emt 0:00:45]} Ne8 {[%emt 0:00:07]} 29. Bf2 {[%emt 0:01:04]} Nb4 {[%emt 0:02:17]} 30. Be3 {[%emt 0:00:05]} Kc8 {[%emt 0:00:34]} 31. Kf2 {[%emt 0:00:06]} Bg7 {[%emt 0:00:32]} 32. Rh1 {[%emt 0:00:02]} Rh8 {[%emt 0:00:35]} 33. Rh2 {[%emt 0:00:11]} Rb7 {[%emt 0:01:11]} 34. Rah1 {[%emt 0:00:03]} Kb8 {[%emt 0:01:11]} 35. b3 {[%emt 0:01:03]} Bc8 {[%emt 0:00:24]} 36. Ke1 {[%emt 0:02:07]} Qf8 {[%emt 0:00:25]} 37. Kd1 {[%emt 0:00:06]} Qe7 {[%emt 0:00:05]} 38. Kc1 {[%emt 0:00:04]} Qf8 {[%emt 0:00:06]} 39. Kb2 {[%emt 0:00:02]} Qe7 {[%emt 0:00:12]} 40. Bd1 {[%emt 0:00:01]} Bd7 {[%emt 0:01:21]} 41. Ne2 {[%emt 0:00:30]} Nc7 {[%emt 0:01:06]} 42. Nc3 {[%emt 0:02:30]} Qe8 {[%emt 0:00:23]} 43. Be2 {[%emt 0:00:06]} Qf8 {[%emt 0:02:01]} 44. g5 {[%emt 0:03:09]} Be8 {[%emt 0:00:46]} 45. Ng4 {[%emt 0:00:45]} 1-0

[Event "51st La Roda Open 2025"]
[Site "La Roda"]
[Date "2025.04.20"]
[Round "9.7"]
[White "Yordanov, Lachezar"]
[Black "Santos, Antonio P"]
[Result "1-0"]
[Annotator "ChessBase"]
[ECO "A57"]
[WhiteElo "2364"]
[BlackElo "2152"]
[PlyCount "107"]
[EventDate "2025.04.15"]
[EventType "swiss"]
[EventCountry "ESP"]
[SourceTitle "playchess.com"]
[Source "ChessBase"]
[SourceQuality "1"]
[TimeControl "5400+30"]

1. d4 {[%emt 0:00:02]} Nf6 {[%emt 0:06:59]} 2. c4 {[%emt 0:00:05]} g6 {[%emt 0:00:09]} 3. Nf3 {[%emt 0:00:12]} Bg7 {[%emt 0:00:10]} 4. e3 {[%emt 0:00:07]} O-O {[%emt 0:00:13]} 5. Be2 {[%emt 0:00:04]} c5 {[%emt 0:02:19]} 6. d5 {[%emt 0:00:07]} b5 {[%emt 0:00:07]} 7. cxb5 {[%emt 0:00:31]} d6 {[%emt 0:00:07]} 8. Nc3 {[%emt 0:01:04]} a6 {[%emt 0:00:08]} 9. bxa6 {[%emt 0:07:39]} Bxa6 {[%emt 0:00:11]} 10. O-O {[%emt 0:00:05]} Qb6 {[%emt 0:00:54]} 11. Nd2 {[%emt 0:09:20]} Bxe2 {[%emt 0:09:22]} 12. Qxe2 {[%emt 0:00:07]} Na6 {[%emt 0:00:12]} 13. Nc4 {[%emt 0:00:20]} Qc7 {[%emt 0:01:01]} 14. e4 {[%emt 0:03:18]} Nd7 {[%emt 0:00:47]} 15. Bg5 {[%emt 0:13:23]} Ne5 {[%emt 0:03:16]} 16. Nb5 {[%emt 0:02:38]} Qb7 {[%emt 0:00:37]} 17. Nba3 {[%emt 0:09:33]} Rfb8 {[%emt 0:12:58]} 18. Nxe5 {[%emt 0:02:45]} Bxe5 {[%emt 0:00:09]} 19. Nc4 {[%emt 0:00:02]} Bg7 {[%emt 0:00:20]} 20. Rab1 {[%emt 0:03:04]} h6 {[%emt 0:06:39]} 21. Be3 {[%emt 0:11:06]} Nc7 {[%emt 0:01:56]} 22. a3 {[%emt 0:00:01]} Qb3 {[%emt 0:04:35]} 23. Rbc1 {[%emt 0:00:08]} Ra4 {[%emt 0:05:10]} 24. Nd2 {[%emt 0:03:36]} Qb7 {[%emt 0:03:42]} 25. Rc2 {[%emt 0:01:52]} Ne8 {[%emt 0:06:46]} 26. Nc4 {[%emt 0:02:21]} Nf6 {[%emt 0:03:11]} 27. e5 {[%emt 0:04:46]} dxe5 {[%emt 0:01:05]} 28. Bxc5 {[%emt 0:01:17]} Nxd5 {[%emt 0:00:26]} 29. g3 {[%emt 0:00:43]} Nf6 {[%emt 0:14:41]} 30. Bb4 {[%emt 0:05:16]} Ne4 {[%emt 0:03:02]} 31. f3 {[%emt 0:03:07]} Ng5 {[%emt 0:00:26]} 32. Nxe5 {[%emt 0:01:42]} Ra6 {[%emt 0:03:41]} 33. Nd3 {[%emt 0:02:40]} Re6 {[%emt 0:00:49]} 34. Qg2 {[%emt 0:00:38]} Re3 {[%emt 0:01:31]} 35. Ne1 {[%emt 0:03:00]} Rb3 {[%emt 0:04:18]} 36. Rd2 {[%emt 0:03:08]} Ne6 {[%emt 0:00:43]} 37. Qe2 {[%emt 0:02:15]} Bf6 {[%emt 0:02:16]} 38. Kg2 {[%emt 0:01:27]} h5 {[%emt 0:01:11]} 39. Rf2 {[%emt 0:01:33]} h4 {[%emt 0:00:12]} 40. Qc4 {[%emt 0:01:13]} Re3 {[%emt 0:00:22]} 41. Rfe2 {[%emt 0:00:55]} Rxe2+ {[%emt 0:01:14]} 42. Qxe2 {[%emt 0:00:25]} Rc8 {[%emt 0:00:50]} 43. Qe4 {[%emt 0:01:15]} Qb5 {[%emt 0:02:15]} 44. f4 {[%emt 0:02:19]} h3+ {[%emt 0:00:49]} 45. Kxh3 {[%emt 0:00:15]} Qf1+ {[%emt 0:00:02]} 46. Qg2 {[%emt 0:00:14]} Qc4 {[%emt 0:00:43]} 47. Qe2 {[%emt 0:00:49]} Qc6 {[%emt 0:00:10]} 48. Nf3 {[%emt 0:00:34]} Kg7 {[%emt 0:00:10]} 49. Kg2 {[%emt 0:00:29]} Rh8 {[%emt 0:00:32]} 50. Kg1 {[%emt 0:00:35]} Rc8 {[%emt 0:00:19]} 51. Ne5 {[%emt 0:00:35]} Qc1+ {[%emt 0:00:23]} 52. Rd1 {[%emt 0:00:45]} Nd4 {[%emt 0:01:41]} 53. Qd3 {[%emt 0:00:27]} Bxe5 {[%emt 0:00:16]} 54. fxe5 {[%emt 0:00:20]} 1-0